bitfinex-derivatives/quotes_SOLF0:USTF0_20251101
["timestamp","ask_amount","ask_price","bid_price","bid_amount"]
[1761961603278,7.42166113,186.63,186.62,0.03392559]
[1761961603580,12.18735969,186.63,186.62,0.03392559]
[1761961609482,12.19437054,186.63,186.62,0.03392559]
[1761961619597,7.42867198,186.63,186.62,0.03392559]
[1761961619799,12.20544353,186.63,186.62,0.03392559]
[1761961621698,9.37544353,186.63,186.62,2.93392559]
[1761961622595,9.37544353,186.63,186.62,7.95153024]
[1761961622801,12.17544353,186.63,186.62,0.03392559]
[1761961627302,4.98417345,186.73,186.62,2.93392559]
[1761961627303,2.8,186.68,186.62,2.93392559]
[1761961627508,7.57432585,186.67,186.65,6.6898131]
[1761961627703,2.8,186.67,186.65,6.6898131]
[1761961628611,2.8,186.71,186.66,2.9]
[1761961628802,2.8,186.71,186.67,7.91511382]
[1761961629213,2.8,186.71,186.68,5.01511382]
[1761961629401,2.8,186.71,186.68,7.91511382]
[1761961629607,2.8,186.71,186.68,7.91365285]
[1761961630108,2.8,186.71,186.68,5.01365285]
[1761961631210,2.8,186.71,186.67,7.91365285]
[1761961632611,2.8,186.71,186.68,5.01365285]
[1761961634813,2.8,186.71,186.67,0.03502427]
[1761961635420,4.61949627,186.71,186.67,0.03502427]
[1761961635619,2.8,186.7,186.67,0.03502427]
[1761961639320,4.5115354,186.69,186.67,0.03502427]
[1761961639527,11.79244805,186.68,186.67,0.03502427]
[1761961644940,2.83,186.67,186.63,5.01365285]
[1761961645146,2.83,186.65,186.63,5.01365285]
[1761961645343,7.3415354,186.64,186.63,5.01365285]
[1761961645744,7.3415354,186.64,186.62,5.01365285]
[1761961645945,7.3415354,186.63,186.62,5.01365285]
[1761961646145,2.83,186.62,186.61,9.69198681]
[1761961646345,7.3447681,186.62,186.61,9.69198681]
[1761961654150,4.5147681,186.62,186.61,12.50198681]
[1761961655151,7.3447681,186.62,186.61,12.50198681]
[1761961656448,4.5147681,186.62,186.61,12.50198681]
[1761961656653,0.03396237,186.63,186.62,2.81]
[1761961656851,4.54782373,186.63,186.62,2.81]
[1761961657951,4.54782373,186.63,186.62,7.81890327]
[1761961658748,4.54808327,186.63,186.62,7.81890327]
[1761961661358,4.54808327,186.63,186.62,2.81]
[1761961661555,4.54808327,186.63,186.61,19.33038635]
[1761961661750,0.03396237,186.63,186.61,19.33038635]
[1761961663853,0.03396237,186.63,186.62,2.81]
[1761961664054,4.55918987,186.63,186.62,7.81890327]
[1761961666362,7.37918987,186.63,186.62,5.00890327]
[1761961666861,4.55918987,186.63,186.62,7.77890327]
[1761961670757,7.37918987,186.63,186.62,7.77890327]
[1761961672059,7.37918987,186.63,186.62,5.00890327]
[1761961672261,7.37918987,186.63,186.61,16.52038635]
[1761961672468,2.85396237,186.63,186.61,16.52038635]
[1761961672662,2.85396237,186.63,186.61,19.29038635]
[1761961673167,2.85396237,186.63,186.62,5.00890327]
[1761961673359,7.37962744,186.63,186.62,5.00890327]
[1761961680073,11.80582451,186.63,186.62,5.00890327]
[1761961681275,11.80582451,186.63,186.61,17.47089008]
[1761961681476,8.95165702,186.62,186.61,17.47089008]
[1761961681977,11.77165702,186.62,186.61,14.70089008]
[1761961682676,7.24599195,186.62,186.61,14.70089008]
[1761961682870,11.77760018,186.62,186.61,14.70089008]
[1761961687782,7.35160823,186.62,186.61,14.70089008]
[1761961688079,11.77821101,186.62,186.61,14.70089008]
[1761961690280,11.77821101,186.62,186.61,9.69198681]
[1761961696985,11.77821101,186.62,186.61,14.71110188]
[1761961697884,11.77821101,186.62,186.61,9.69198681]
[1761961701082,11.77821101,186.62,186.61,1e-08]
[1761961701278,2.75,186.61,186.57,9.5598131]
[1761961701480,7.28160823,186.6,186.57,9.5598131]
[1761961701680,7.28160823,186.59,186.57,9.5598131]
[1761961701984,2.75,186.59,186.57,9.5598131]
[1761961705393,2.75,186.59,186.57,2.87]
[1761961707494,2.78396237,186.63,186.57,2.87]
[1761961707696,2.75,186.61,186.57,2.87]
[1761961707889,4.51103195,186.6,186.57,2.87]
[1761961708086,4.51103195,186.59,186.57,2.87]
[1761961708291,2.75,186.61,186.57,2.87]
[1761961708483,4.51091128,186.6,186.57,2.87]
[1761961708688,4.51091128,186.59,186.57,2.87]
[1761961708887,2.75,186.61,186.57,2.87]
[1761961709088,0.03396237,186.63,186.57,2.87]
[1761961709089,4.51091128,186.6,186.58,2.68]
[1761961709285,4.51091128,186.59,186.58,2.68]
[1761961709899,0.03396237,186.63,186.58,2.68]
[1761961710102,11.6843672,186.62,186.58,2.68]
[1761961710297,4.5110898,186.61,186.58,2.68]
[1761961710492,2.75,186.62,186.59,2.68]
[1761961710493,4.5110898,186.6,186.59,2.68]
[1761961715304,4.5110898,186.6,186.59,9.3698131]
[1761961715913,0.03396237,186.63,186.6,2.68]
[1761961716113,4.51227062,186.62,186.6,2.68]
[1761961716315,0.03396237,186.63,186.6,2.68]
[1761961716316,4.51227062,186.61,186.6,2.68]
[1761961720519,4.51227062,186.61,186.6,9.3698131]
[1761961724817,4.51227062,186.61,186.6,2.68]
[1761961725817,7.40227062,186.61,186.59,6.6898131]
[1761961726022,2.89,186.59,186.58,6.6898131]
[1761961726324,7.40227062,186.59,186.57,9.3898131]
[1761961726525,4.51227062,186.58,186.57,9.3898131]
[1761961727120,7.40227062,186.58,186.57,6.6898131]
[1761961727715,7.40227062,186.58,186.56,9.3898131]
[1761961727916,2.89,186.62,186.57,2.7]
[1761961728217,2.89,186.6,186.57,2.7]
[1761961728412,7.42639283,186.59,186.57,2.7]
[1761961728611,7.42639283,186.59,186.56,6.6898131]
[1761961728612,2.89,186.57,186.56,6.6898131]
[1761961728812,7.42639283,186.57,186.56,6.6898131]
[1761961729015,7.42639283,186.57,186.51,2.84425123]
[1761961729016,7.42639283,186.57,186.55,9.3898131]
[1761961729219,2.89,186.57,186.55,9.3898131]
[1761961730629,2.89,186.57,186.56,2.7]
[1761961730832,4.53425606,186.57,186.56,2.7]
[1761961731224,7.42425606,186.57,186.55,9.3898131]
[1761961731529,2.89,186.57,186.55,9.3898131]
[1761961734030,2.89,186.57,186.56,2.7]
[1761961734228,7.42089954,186.57,186.56,2.7]
[1761961734826,4.53089954,186.57,186.56,2.7]
[1761961736535,7.42089954,186.57,186.55,9.3898131]
[1761961736723,2.89,186.57,186.55,9.3898131]
[1761961737034,2.89,186.57,186.56,2.7]
[1761961737235,4.53029935,186.57,186.56,2.7]
[1761961744336,7.42029935,186.57,186.56,2.7]
[1761961744739,7.42029935,186.57,186.54,6.6898131]
[1761961744932,2.89,186.57,186.55,2.7]
[1761961745135,2.89,186.57,186.54,9.3898131]
[1761961746336,0.03379051,186.58,186.52,10.03229954]
[1761961746337,2.89,186.55,186.53,2.7]
[1761961746542,2.89,186.55,186.52,6.6898131]
[1761961746937,2.89,186.55,186.51,9.3898131]
[1761961747138,2.89,186.55,186.51,2.7]
[1761961747442,2.89,186.53,186.49,2.7]
[1761961747635,2.89,186.51,186.49,2.7]
[1761961754744,2.89,186.51,186.48,0.93311346]
[1761961755845,2.89,186.51,186.48,3.63311346]
[1761961758243,2.89,186.51,186.49,2.83]
[1761961761545,2.89,186.51,186.48,0.93311346]
[1761961766944,2.89,186.51,186.43,9.3398131]
[1761961767148,2.81,186.49,186.43,3.58335121]
[1761961767348,2.81,186.47,186.43,3.58335121]
[1761961768954,2.81,186.47,186.44,2.65]
[1761961775563,2.81,186.47,186.43,0.93335121]
[1761961775764,2.81,186.47,186.41,1.82229482]
[1761961776962,2.81,186.45,186.41,1.82229482]
[1761961777860,2.81,186.45,186.4,3.583539]
[1761961778566,2.81,186.45,186.4,2.65]
[1761961780966,2.81,186.45,186.38,2.65]
[1761961781574,2.81,186.43,186.38,2.65]
[1761961788779,2.82442217,186.46,186.38,2.65]
[1761961788980,7.694315,186.45,186.38,2.65]
[1761961789166,4.90528415,186.44,186.38,2.65]
[1761961789572,2.79,186.45,186.38,2.65]
[1761961789981,2.79,186.45,186.41,2.84]
[1761961793277,2.82442217,186.46,186.41,2.84]
[1761961794978,0.03442217,186.46,186.41,2.84]
[1761961796082,2.82442217,186.46,186.41,2.84]
[1761961796282,2.82442217,186.46,186.42,1.82229482]
[1761961796482,2.82442217,186.46,186.43,2.84]
[1761961797377,0.03442217,186.46,186.43,2.84]
[1761961797770,0.03442217,186.46,186.44,1.82229482]
[1761961797979,0.03442217,186.46,186.45,2.84]
[1761961800483,2.82442217,186.46,186.42,4.66229482]
[1761961800685,2.82442217,186.46,186.42,2.84]
[1761961803586,2.82442217,186.46,186.39,2.84]
[1761961803587,4.91716716,186.45,186.39,2.84]
[1761961803888,2.79,186.43,186.39,2.84]
[1761961805294,2.82442217,186.46,186.39,2.84]
[1761961805490,4.91915455,186.45,186.4,1.82229482]
[1761961805791,4.91915455,186.44,186.41,2.84]
[1761961806088,2.82442217,186.46,186.41,2.84]
[1761961806286,7.71059631,186.45,186.41,2.84]
[1761961806486,4.92059631,186.44,186.41,2.84]
[1761961806688,2.79,186.45,186.41,2.84]
[1761961806990,4.92106113,186.44,186.41,2.84]
[1761961807184,2.79,186.45,186.41,2.84]
[1761961807384,4.92242577,186.44,186.41,2.84]
[1761961807589,2.79,186.45,186.41,2.84]
[1761961807893,4.92264324,186.44,186.41,2.84]
[1761961808093,2.79,186.45,186.41,2.84]
[1761961808291,4.92398049,186.44,186.41,2.84]
[1761961808590,2.82442217,186.46,186.41,2.84]
[1761961808790,4.9244874,186.45,186.41,2.84]
[1761961808984,4.9244874,186.44,186.41,2.84]
[1761961809187,2.82442217,186.46,186.41,2.84]
[1761961809386,4.92552194,186.45,186.41,2.84]
[1761961809692,2.82442217,186.46,186.43,2.84]
[1761961809693,0.03442217,186.46,186.43,2.84]
[1761961809884,4.92611697,186.45,186.43,2.84]
[1761961810185,4.92721041,186.44,186.41,2.84]
[1761961810391,2.79,186.45,186.41,2.84]
[1761961810592,7.71739712,186.44,186.41,2.84]
[1761961810889,2.79,186.45,186.41,2.84]
[1761961811190,4.92739712,186.44,186.41,2.84]
[1761961811391,2.79,186.45,186.41,2.84]
[1761961811592,4.92934167,186.44,186.41,2.84]
[1761961811889,2.79,186.45,186.41,2.84]
[1761961812088,4.92934167,186.44,186.41,2.84]
[1761961812289,4.92934167,186.43,186.41,2.84]
[1761961812487,2.79,186.45,186.41,2.84]
[1761961812683,4.92973631,186.44,186.41,2.84]
[1761961812884,4.92973631,186.43,186.41,2.84]
[1761961813089,2.79,186.45,186.41,2.84]
[1761961813284,4.92999146,186.44,186.41,2.84]
[1761961813488,4.92999146,186.43,186.41,2.84]
[1761961813691,2.79,186.45,186.41,2.84]
[1761961813888,7.72013529,186.44,186.41,2.84]
[1761961814083,4.93013529,186.43,186.41,2.84]
[1761961814279,2.79,186.44,186.41,2.84]
[1761961814482,4.93056255,186.43,186.41,2.84]
[1761961814678,2.79,186.44,186.41,2.84]
[1761961814878,4.93056255,186.43,186.41,2.84]
[1761961815087,0.03442217,186.46,186.41,2.84]
[1761961815383,9.39402577,186.45,186.41,2.84]
[1761961815590,4.93089064,186.44,186.43,2.84]
[1761961827892,4.93447463,186.44,186.43,2.84]
[1761961829390,0.03442217,186.46,186.44,2.88]
[1761961829595,4.93525073,186.45,186.44,2.88]
[1761961833305,4.93525073,186.45,186.44,9.5698131]
[1761961835508,0.03442217,186.46,186.45,2.88]
[1761961835702,0.03442217,186.46,186.45,12.91910189]
[1761961836206,0.03442217,186.46,186.45,2.88]
[1761961841010,2.68,186.51,186.45,2.88]
[1761961841206,11.87588841,186.5,186.47,2.88]
[1761961841411,2.68,186.5,186.47,2.88]
[1761961841808,2.68,186.5,186.49,5.01478762]
[1761961842004,11.87455138,186.5,186.49,5.01478762]
[1761961843517,9.19455138,186.5,186.49,7.89478762]
[1761961843917,11.87455138,186.5,186.49,5.01478762]
[1761961844618,9.19455138,186.5,186.49,7.89478762]
[1761961845121,9.19455138,186.5,186.49,5.01478762]
[1761961845312,11.87455138,186.5,186.49,5.01478762]
[1761961848017,9.19455138,186.5,186.49,7.68478762]
[1761961848219,9.19455138,186.5,186.49,2.67]
[1761961848515,2.75,186.5,186.49,5.01478762]
[1761961849911,2.75,186.5,186.49,7.68478762]
[1761961850106,2.75,186.57,186.49,7.68478762]
[1761961850311,2.75,186.55,186.49,7.68478762]
[1761961850518,2.75,186.53,186.49,7.68478762]
[1761961850717,2.75,186.51,186.49,7.68478762]
[1761961850919,2.75,186.55,186.5,2.67]
[1761961851112,2.75,186.53,186.5,2.67]
[1761961851311,9.18851728,186.52,186.5,2.67]
[1761961851512,9.18851728,186.51,186.5,2.67]
[1761961851912,9.18851728,186.51,186.5,7.68478762]
[1761961852212,11.93851728,186.51,186.5,5.01478762]
[1761961852518,11.93873124,186.51,186.5,5.01478762]
[1761961853423,11.93861397,186.51,186.5,5.01478762]
[1761961854324,7.24721712,186.51,186.5,5.01478762]
[1761961855425,4.49721712,186.51,186.5,5.00986998]
[1761961855926,7.24721712,186.51,186.5,5.00986998]
[1761961858324,11.93876744,186.51,186.5,5.00986998]
[1761961862120,9.18876744,186.51,186.5,7.67986998]
[1761961862320,2.75,186.53,186.5,7.67986998]
[1761961862526,2.75,186.51,186.5,7.67986998]
[1761961862726,2.75,186.51,186.5,5.00986998]
[1761961862924,2.75,186.51,186.49,5.04669195]
[1761961862925,2.75,186.5,186.49,5.04669195]
[1761961863129,2.75,186.49,186.47,5.00986998]
[1761961863328,11.94105377,186.48,186.47,5.00986998]
[1761961863624,2.75,186.47,186.45,5.00986998]
[1761961864330,2.75,186.47,186.46,5.00986998]
[1761961864626,7.24955322,186.47,186.46,5.00986998]
[1761961865327,11.94255052,186.47,186.46,5.00986998]
[1761961870544,2.75,186.46,186.45,5.00986998]
[1761961870828,11.94255052,186.46,186.45,5.00986998]
[1761961873131,2.75,186.45,186.44,5.04653589]
[1761961873332,11.94255052,186.45,186.44,5.04653589]
[1761961875432,11.94255052,186.45,186.44,0.03666591]
[1761961877628,7.4429973,186.45,186.44,0.03666591]
[1761961877829,11.94764034,186.45,186.44,0.03666591]
[1761961881633,2.75,186.45,186.44,0.03666591]
[1761961890655,2.83,186.5,186.44,4.61031548]
[1761961890851,2.83,186.48,186.45,2.75]
[1761961891053,4.49896116,186.47,186.46,1.82364957]
[1761961891744,7.32896116,186.47,186.46,1.82364957]
[1761961894250,12.01428031,186.47,186.46,1.82364957]
[1761961894550,12.01428031,186.47,186.45,2.78598226]
[1761961894753,2.83,186.47,186.45,2.78598226]
[1761961895459,2.83,186.47,186.45,0.03598226]
[1761961898260,4.50277253,186.46,186.45,0.03598226]
[1761961898452,7.33277253,186.46,186.45,0.03598226]
[1761961899050,2.83,186.46,186.45,0.03598226]
[1761961900061,7.5189138,186.46,186.45,0.03598226]
[1761961900657,11.97949354,186.46,186.45,0.03598226]
[1761961902461,2.83,186.45,186.42,4.39635392]
[1761961902661,2.83,186.43,186.39,1.82364957]
[1761961902854,2.83,186.41,186.39,1.82364957]
[1761961903445,2.83,186.41,186.37,7.62115012]
[1761961903646,2.83,186.39,186.37,2.75730127]
[1761961904459,2.83,186.39,186.37,5.50730127]
[1761961904657,2.83,186.46,186.38,2.75]
[1761961904858,2.83,186.44,186.38,2.75]
[1761961905058,2.83,186.42,186.38,2.75]
[1761961905260,2.83,186.4,186.37,5.50730127]
[1761961911865,2.83,186.4,186.38,2.86]
[1761961912958,2.83,186.4,186.37,2.75730127]
[1761961913159,2.83,186.4,186.37,5.61730127]
[1761961913465,2.83,186.4,186.37,2.75730127]
[1761961913665,2.83,186.4,186.36,6.68749842]
[1761961913860,2.83,186.4,186.34,8.51114799]
[1761961916861,2.83,186.4,186.34,11.37114799]
[1761961917258,2.83,186.4,186.34,9.54749842]
[1761961918469,2.94,186.38,186.34,9.54749842]
[1761961920170,2.94,186.38,186.35,2.86]
[1761961920372,0.03581023,186.39,186.35,2.86]
[1761961920571,2.97581023,186.39,186.35,2.86]
[1761961921973,2.97581023,186.39,186.35,4.68364957]
[1761961922777,2.97581023,186.39,186.36,2.86]
[1761961927173,0.03581023,186.39,186.36,2.86]
[1761961927578,0.03581023,186.39,186.38,2.86]
[1761961927779,2.97581023,186.39,186.37,4.68364957]
[1761961928271,0.03581023,186.39,186.38,2.86]
[1761961936284,2.65,186.47,186.39,2.69]
[1761961936482,2.65,186.45,186.42,4.51364957]
[1761961937482,2.65,186.45,186.42,1.82364957]
[1761961937983,2.65,186.45,186.42,1.85768423]
[1761961940082,2.85,186.43,186.42,1.85768423]
[1761961940286,11.97179605,186.43,186.42,0.03403466]
[1761961940684,2.85,186.42,186.38,1.82364957]
[1761961940984,2.85,186.4,186.36,1.82364957]
[1761961941385,0.03418915,186.44,186.34,6.68749842]
[1761961941386,2.85,186.38,186.35,2.79]
[1761961944287,2.85,186.38,186.34,9.47749842]
[1761961945786,2.85,186.38,186.35,2.79]
[1761961948595,2.88377993,186.38,186.35,2.79]
[1761961950702,0.03377993,186.38,186.35,2.79]
[1761961951385,2.77377993,186.38,186.35,2.79]
[1761961952691,4.68888637,186.37,186.35,2.79]
[1761961952891,2.77377993,186.38,186.35,2.79]
[1761961953090,4.68983279,186.37,186.35,2.79]
[1761961953292,2.77377993,186.38,186.35,2.79]
[1761961953492,4.68986454,186.37,186.35,2.79]
[1761961953693,2.77377993,186.38,186.35,2.79]
[1761961954000,2.74,186.36,186.34,2.71]
[1761961958712,2.74,186.36,186.33,9.5387805]
[1761961959014,2.74,186.36,186.34,2.71]
[1761961959402,2.74,186.36,186.32,7.62137562]
[1761961959606,2.74,186.36,186.32,10.33137562]
[1761961959808,2.74,186.36,186.33,2.71]
[1761961962620,2.74,186.36,186.34,7.72549829]
[1761961963019,2.74,186.36,186.35,5.01549829]
[1761961963821,2.74,186.37,186.35,7.72549829]
[1761961968825,2.74,186.37,186.35,5.01549829]
[1761961970321,2.74,186.37,186.34,5.01549829]
[1761961971928,0.03377993,186.38,186.32,7.62137562]
[1761961971929,2.78,186.35,186.33,5.01549829]
[1761961972227,2.78,186.35,186.32,5.01549829]
[1761961972822,2.78,186.35,186.32,7.85549829]
[1761961973018,2.78,186.35,186.33,2.84]
[1761961973226,2.78,186.35,186.32,7.85549829]
[1761961973423,2.78,186.35,186.32,2.84]
[1761961982126,2.78,186.35,186.3,2.84]
[1761961982326,2.78,186.35,186.3,9.52749842]
[1761961982727,2.78,186.35,186.31,2.84]
[1761961983330,5.63128208,186.44,186.31,2.84]
[1761961983632,2.78,186.42,186.31,2.84]
[1761961983933,0.03446395,186.35,186.31,2.84]
[1761961984129,2.81446395,186.35,186.31,2.84]
[1761961984729,2.78,186.35,186.31,2.84]
[1761961984937,7.8104067,186.44,186.32,2.84]
[1761961984938,2.78,186.38,186.32,2.84]
[1761961985131,2.78,186.36,186.32,2.84]
[1761961987437,2.78,186.43,186.32,2.84]
[1761961987639,2.78,186.41,186.32,2.84]
[1761961987838,2.78,186.39,186.32,2.84]
[1761961988038,11.72956531,186.38,186.32,2.84]
[1761961988236,11.72956531,186.37,186.32,2.84]
[1761961988438,11.72956531,186.36,186.32,2.84]
[1761961988737,2.78,186.39,186.32,2.84]
[1761961988933,11.72247235,186.38,186.32,2.84]
[1761961989137,11.72247235,186.37,186.32,2.84]
[1761961989337,8.97654077,186.36,186.32,2.84]
[1761961989538,0.03406842,186.36,186.32,2.84]
[1761961990141,4.68209342,186.35,186.32,2.84]
[1761961990344,4.68209342,186.34,186.32,2.84]
[1761961990534,4.68209342,186.33,186.32,2.84]
[1761961997141,4.68209342,186.33,186.32,9.52749842]
[1761961999440,4.68209342,186.33,186.32,2.84]
[1761962000637,7.45209342,186.33,186.32,6.70005375]
[1761962000940,4.68209342,186.33,186.32,2.67]
[1761962001140,4.68209342,186.33,186.32,9.37005375]
[1761962002647,7.45209342,186.33,186.32,9.37005375]
[1761962002848,7.45209342,186.33,186.32,2.67]
[1761962003242,2.77,186.32,186.31,6.70005375]
[1761962003439,2.77,186.31,186.3,6.70005375]
[1761962003749,7.45209342,186.31,186.3,6.70005375]
[1761962003949,12.489634,186.31,186.3,6.70005375]
[1761962005849,12.489634,186.31,186.29,11.19598479]
[1761962006047,9.719634,186.3,186.29,11.19598479]
[1761962007650,9.719634,186.3,186.29,4.49593104]
[1761962007651,5.03754058,186.3,186.29,4.49593104]
[1761962010943,2.77,186.29,186.28,6.701636]
[1761962011149,2.77,186.28,186.27,0.93411534]
[1761962011452,2.77,186.28,186.24,6.56237447]
[1761962011453,2.77,186.27,186.24,6.56237447]
[1761962011653,2.77,186.25,186.23,9.69198681]
[1761962011848,1.82593104,186.3,186.23,9.69198681]
[1761962011849,12.49471616,186.24,186.23,9.69198681]
[1761962013154,7.80754058,186.24,186.23,9.69198681]
[1761962013947,0.03431354,186.25,186.23,12.36198681]
[1761962014147,0.03431354,186.25,186.24,4.49593104]
[1761962015542,0.03431354,186.25,186.24,2.67]
[1761962015749,0.03431354,186.25,186.24,4.49593104]
[1761962021854,0.03431354,186.25,186.24,2.67]
[1761962022256,0.03431354,186.25,186.24,1.82593104]
[1761962022457,2.80431354,186.25,186.24,1.82593104]
[1761962023160,0.03431354,186.25,186.24,1.82593104]
[1761962024061,0.03431354,186.25,186.24,4.49593104]
[1761962028958,0.03431354,186.25,186.24,2.67]
[1761962036062,2.87431354,186.25,186.23,9.69198681]
[1761962037070,2.87431354,186.25,186.23,12.35198681]
[1761962037262,0.03431354,186.25,186.23,12.35198681]
[1761962037871,2.87431354,186.25,186.23,12.35198681]
[1761962040164,0.03431354,186.25,186.23,12.35198681]
[1761962040464,0.03431354,186.25,186.24,2.66]
[1761962040672,9.82847166,186.25,186.24,2.66]
[1761962040971,12.66847166,186.25,186.23,12.35198681]
[1761962041172,2.87431354,186.25,186.23,12.35198681]
[1761962044476,2.87431354,186.25,186.23,9.69198681]
[1761962044675,4.75298662,186.24,186.23,12.35198681]
[1761962044870,2.87431354,186.25,186.23,12.35198681]
[1761962045075,0.03431354,186.25,186.24,2.66]
[1761962045280,9.83407384,186.25,186.24,2.66]
[1761962046278,12.67407384,186.25,186.24,2.66]
[1761962047476,9.83407384,186.25,186.24,2.66]
[1761962047676,5.08096705,186.25,186.24,2.66]
[1761962048382,0.03431354,186.25,186.24,2.66]
[1761962048986,2.87431354,186.25,186.23,14.17791785]
[1761962049780,2.84,186.24,186.23,9.69198681]
[1761962049972,12.0725693,186.24,186.23,9.69198681]
[1761962050680,9.2325693,186.24,186.23,12.35198681]
[1761962050882,0.03431354,186.25,186.24,2.66]
[1761962053178,9.27738406,186.25,186.24,2.66]
[1761962054882,9.27738406,186.25,186.23,14.17791785]
[1761962055086,4.52519075,186.24,186.23,14.17791785]
[1761962055780,9.2486515,186.24,186.23,14.17791785]
[1761962055981,4.52519075,186.24,186.23,14.17791785]
[1761962056183,9.2493828,186.24,186.23,14.17791785]
[1761962056681,12.1393828,186.24,186.23,9.69198681]
[1761962057586,12.14498719,186.24,186.23,9.69198681]
[1761962059288,9.25498719,186.24,186.23,9.69198681]
[1761962059789,9.25498719,186.24,186.23,12.58198681]
[1761962060487,0.03431354,186.25,186.23,12.58198681]
[1761962060687,0.03431354,186.25,186.24,2.89]
[1761962060988,9.28726131,186.25,186.24,2.89]
[1761962061684,0.03431354,186.25,186.24,2.89]
[1761962067593,0.03431354,186.25,186.24,9.5723707]
[1761962067990,2.85431354,186.25,186.24,6.6823707]
[1761962068195,12.10841697,186.25,186.23,9.69198681]
[1761962068397,2.85431354,186.25,186.23,9.69198681]
[1761962068894,2.85431354,186.25,186.23,12.58198681]
[1761962069503,0.03431354,186.25,186.23,12.58198681]
[1761962069796,0.03431354,186.25,186.24,2.89]
[1761962069998,9.282295,186.25,186.24,2.89]
[1761962071698,12.102295,186.25,186.23,16.37435751]
[1761962071900,2.85431354,186.25,186.23,16.37435751]
[1761962072107,2.85431354,186.25,186.23,19.26435751]
[1761962074304,7.68891354,186.25,186.23,19.26435751]
[1761962074610,2.82,186.24,186.23,16.37435751]
[1761962075311,7.3484526,186.24,186.23,16.37435751]
[1761962075801,7.3484526,186.24,186.23,9.69198681]
[1761962076510,12.06987314,186.24,186.23,9.69198681]
[1761962082117,9.24987314,186.24,186.23,12.58198681]
[1761962093823,9.24987314,186.24,186.23,9.69198681]
[1761962093824,7.52142054,186.24,186.23,9.69198681]
[1761962094029,12.07347881,186.24,186.23,9.69198681]
[1761962094829,12.07347881,186.24,186.23,12.44198681]
[1761962094830,9.27347881,186.24,186.23,12.44198681]
[1761962099033,12.07347881,186.24,186.23,9.69198681]
[1761962103838,9.27347881,186.24,186.23,12.44198681]
[1761962105134,4.72142054,186.24,186.23,19.12435751]
[1761962106737,2.8,186.32,186.24,2.75]
[1761962107036,4.55298881,186.31,186.25,2.75]
[1761962107235,4.55298881,186.3,186.25,2.75]
[1761962107440,4.55298881,186.29,186.25,2.75]
[1761962107634,4.55298881,186.28,186.25,2.75]
[1761962107934,4.55298881,186.27,186.25,2.75]
[1761962108136,4.55298881,186.26,186.25,2.75]
[1761962113046,2.8,186.34,186.26,2.75]
[1761962113338,2.8,186.32,186.3,2.75]
[1761962113539,4.60079997,186.31,186.3,2.75]
[1761962117445,4.52021798,186.31,186.3,2.75]
[1761962118734,9.27077885,186.31,186.3,2.75]
[1761962122445,4.74569411,186.31,186.3,2.75]
[1761962123449,2.7,186.34,186.3,2.75]
[1761962123645,12.15816039,186.33,186.3,2.75]
[1761962123847,9.25816039,186.32,186.3,2.75]
[1761962124146,2.9,186.33,186.3,2.75]
[1761962124346,12.15816039,186.32,186.3,2.75]
[1761962124548,2.9,186.32,186.3,2.75]
[1761962131156,2.9,186.32,186.29,0.03573185]
[1761962131453,9.25521688,186.31,186.29,2.68573185]
[1761962131657,2.9,186.32,186.29,2.68573185]
[1761962131857,9.25580564,186.31,186.29,2.68573185]
[1761962132155,2.9,186.32,186.29,2.68573185]
[1761962132453,9.25584255,186.31,186.29,2.68573185]
[1761962132654,2.9,186.32,186.29,2.68573185]
[1761962132855,9.2560023,186.31,186.29,2.68573185]
[1761962133054,2.9,186.32,186.29,2.68573185]
[1761962133254,9.25599885,186.31,186.29,2.68573185]
[1761962133457,2.9,186.32,186.29,2.68573185]
[1761962133649,12.15625515,186.31,186.29,2.68573185]
[1761962133848,2.9,186.31,186.29,2.68573185]